bitfinex-derivatives/quotes_BTCF0:USTF0_20260207
["timestamp","ask_amount","ask_price","bid_price","bid_amount"]
[1770458453586,0.014688,68129.0,68113.0,0.568877]
[1770458454187,0.014687,68131.0,68113.0,0.568877]
[1770458454387,0.014687,68130.0,68113.0,0.568877]
[1770458454886,0.014687,68133.0,68113.0,0.568877]
[1770458455989,0.014686,68136.0,68117.0,0.568877]
[1770458456981,0.014686,68136.0,68119.0,0.568877]
[1770458457181,0.07690738,68145.0,68119.0,0.568877]
[1770458457182,0.014686,68139.0,68119.0,0.568877]
[1770458457387,0.014686,68137.0,68119.0,0.568877]
[1770458457890,0.07690738,68145.0,68121.0,0.568877]
[1770458458282,0.014685,68141.0,68123.0,0.568877]
[1770458458485,0.014684,68143.0,68123.0,0.568877]
[1770458459486,0.014684,68148.0,68126.0,0.568877]
[1770458459887,0.014684,68146.0,68126.0,0.568877]
[1770458460590,0.07337024,68157.0,68128.0,0.568877]
[1770458460792,0.42922545,68175.0,68136.0,0.568877]
[1770458460793,0.014681,68160.0,68136.0,0.568877]
[1770458461090,0.07337024,68153.0,68132.0,0.11730786]
[1770458461294,0.07337024,68147.0,68123.0,0.568877]
[1770458461796,0.014685,68139.0,68123.0,0.568877]
[1770458462187,0.014685,68142.0,68123.0,0.568877]
[1770458462900,0.014684,68147.0,68123.0,0.568877]
[1770458463500,0.07379286,68155.0,68126.0,0.568877]
[1770458463501,0.014683,68151.0,68126.0,0.568877]
[1770458463886,0.014682,68154.0,68129.0,0.014688]
[1770458464092,0.014682,68154.0,68132.0,0.568877]
[1770458464400,0.014682,68154.0,68134.0,0.568877]
[1770458465891,0.014681,68159.0,68137.0,0.57165611]
[1770458466092,0.014681,68160.0,68139.0,0.57165611]
[1770458466694,0.06740086,68163.0,68139.0,0.57165611]
[1770458466900,0.01468,68162.0,68139.0,0.58634111]
[1770458467389,0.01468,68162.0,68139.0,0.57165611]
[1770458468001,0.014681,68160.0,68139.0,0.57165611]
[1770458468405,0.07060316,68170.0,68139.0,0.57165611]
[1770458468604,0.01468,68163.0,68142.0,0.57165611]
[1770458468811,0.01468,68164.0,68142.0,0.57165611]
[1770458470008,0.014681,68162.0,68142.0,0.57165611]
[1770458471010,0.07014378,68162.0,68142.0,0.57165611]
[1770458471609,0.014683,68151.0,68135.0,0.58098508]
[1770458472209,0.09358666,68149.0,68128.0,0.58098508]
[1770458472409,0.014684,68145.0,68128.0,0.58098508]
[1770458472709,0.014685,68141.0,68128.0,0.58098508]
[1770458472910,0.10827066,68144.0,68128.0,0.58098508]
[1770458473108,0.10827066,68144.0,68104.0,0.014693]
[1770458473109,0.09358666,68138.0,68113.0,0.58098508]
[1770458473302,0.014686,68136.0,68113.0,0.58098508]
[1770458474106,0.014687,68134.0,68113.0,0.58098508]
[1770458475400,0.014687,68132.0,68113.0,0.58098508]
[1770458476108,0.09358666,68138.0,68113.0,0.58098508]
[1770458476308,0.014688,68129.0,68113.0,0.58098508]
[1770458476708,0.014688,68127.0,68113.0,0.58098508]
[1770458477101,0.014685,68142.0,68113.0,0.58098508]
[1770458477297,0.10481814,68142.0,68113.0,0.58098508]
[1770458477498,0.014688,68128.0,68113.0,0.58098508]
[1770458477902,0.014688,68127.0,68113.0,0.58098508]
[1770458478413,0.014688,68126.0,68113.0,0.58098508]
[1770458478617,0.07828813,68140.0,68113.0,0.58098508]
[1770458478818,0.014687,68132.0,68113.0,0.58098508]
[1770458479113,0.07828813,68140.0,68113.0,0.58098508]
[1770458479722,0.014688,68128.0,68113.0,0.58098508]
[1770458480302,0.0944223,68134.0,68113.0,0.57769347]
[1770458480504,0.01469,68118.0,68106.0,0.58098508]
[1770458481020,0.014689,68121.0,68106.0,0.58098508]
[1770458481316,0.54614357,68120.0,68098.0,0.58098508]
[1770458481707,0.01469,68119.0,68098.0,0.58098508]
[1770458483209,0.01469,68119.0,68096.0,0.014695]
[1770458483210,0.54614357,68120.0,68103.0,0.58098508]
[1770458483414,0.014686,68139.0,68103.0,0.58098508]
[1770458483614,0.014686,68139.0,68095.0,0.1215]
[1770458483615,0.42922545,68146.0,68124.0,0.58098508]
[1770458483809,0.54614357,68149.0,68124.0,0.58098508]
[1770458484008,0.54614357,68149.0,68129.0,0.58098508]
[1770458484211,0.01468,68164.0,68130.0,0.59567208]
[1770458484518,0.014683,68151.0,68130.0,0.59567208]
[1770458484707,0.014682,68156.0,68134.0,0.014686]
[1770458484908,0.014681,68159.0,68130.0,0.58098508]
[1770458485108,0.014682,68157.0,68137.0,0.58098508]
[1770458485713,0.014682,68157.0,68137.0,0.59567108]
[1770458486813,0.014681,68160.0,68137.0,0.59567108]
[1770458487019,0.014683,68150.0,68128.0,0.59567308]
[1770458487218,0.56082557,68156.0,68135.0,0.58098508]
[1770458488513,0.014681,68159.0,68137.0,0.58098508]
[1770458488715,0.014682,68157.0,68137.0,0.58098508]
[1770458488918,0.56082557,68157.0,68137.0,0.58098508]
[1770458491719,0.014682,68155.0,68137.0,0.58098508]
[1770458491919,0.54614357,68157.0,68137.0,0.58098508]
[1770458492123,0.014683,68149.0,68130.0,0.58098508]
[1770458492828,0.54614357,68150.0,68130.0,0.58098508]
[1770458495223,0.54614357,68158.0,68130.0,0.58098508]
[1770458495434,0.01468,68163.0,68136.0,0.58098508]
[1770458495620,0.014679,68167.0,68142.0,0.58098508]
[1770458495820,0.01468,68165.0,68142.0,0.58098508]
[1770458496923,0.014679,68168.0,68144.0,0.53898601]
[1770458498927,0.01468,68166.0,68144.0,0.53898601]
[1770458499128,0.01468,68166.0,68146.0,0.53898601]
[1770458500535,0.014679,68169.0,68148.0,0.53898601]
[1770458500936,0.014676,68181.0,68151.0,0.53898601]
[1770458500937,0.56514323,68181.0,68151.0,0.53898601]
[1770458501135,0.56514323,68181.0,68140.0,0.15095799]
[1770458501136,0.014677,68179.0,68160.0,0.53898601]
[1770458501329,0.014681,68162.0,68145.0,0.53898601]
[1770458501528,0.073375,68190.0,68152.0,0.53898601]
[1770458501529,0.014678,68172.0,68152.0,0.53898601]
[1770458502028,0.014679,68170.0,68152.0,0.53898601]
[1770458506639,0.56514323,68174.0,68152.0,0.53898601]
[1770458506832,0.01468,68165.0,68147.0,0.1215]
[1770458507035,0.014678,68175.0,68140.0,0.53898601]
[1770458507036,0.01468,68162.0,68140.0,0.53898601]
[1770458507235,0.014682,68154.0,68140.0,0.53898601]
[1770458509041,0.56514323,68159.0,68140.0,0.53898601]
[1770458509344,0.56514323,68159.0,68114.0,0.21920325]
[1770458509345,0.014683,68149.0,68130.0,0.53898601]
[1770458509544,0.014684,68147.0,68130.0,0.53898601]
[1770458510838,0.56514323,68153.0,68106.0,0.53898601]
[1770458510839,0.014689,68123.0,68106.0,0.53898601]
[1770458511044,0.56514323,68127.0,68106.0,0.53898601]
[1770458511348,0.56514323,68127.0,68094.0,0.00015858]
[1770458511349,0.014692,68110.0,68097.0,0.53898601]
[1770458511548,0.014691,68113.0,68097.0,0.53898601]
[1770458512050,0.014692,68111.0,68097.0,0.53898601]
[1770458512350,0.014691,68115.0,68097.0,0.53898601]
[1770458514547,0.56514323,68112.0,68094.0,0.00015858]
[1770458514940,0.56514323,68111.0,68094.0,0.00015858]
[1770458515141,0.56514323,68105.0,68094.0,0.00015858]
[1770458515336,0.01469,68119.0,68068.0,0.53898601]
[1770458515337,0.56514323,68097.0,68068.0,0.53898601]
[1770458515753,0.014695,68096.0,68068.0,0.53898601]
[1770458516247,0.014695,68094.0,68068.0,0.53898601]
[1770458516444,0.01469,68119.0,68067.0,0.014701]
[1770458516445,0.56514323,68117.0,68081.0,0.53898601]
[1770458516648,0.57983323,68117.0,68094.0,0.53898601]
[1770458517149,0.014692,68110.0,68083.0,0.014697]
[1770458517453,0.014692,68107.0,68084.0,0.53898601]
[1770458517748,0.014693,68104.0,68084.0,0.53898601]
[1770458518747,0.014692,68108.0,68084.0,0.53898601]
[1770458518950,0.56514323,68110.0,68084.0,0.53898601]
[1770458519150,0.014692,68109.0,68084.0,0.53898601]
[1770458519448,0.014693,68106.0,68084.0,0.53898601]
[1770458520043,0.014693,68103.0,68084.0,0.53898601]
[1770458520238,0.56514323,68110.0,68084.0,0.53898601]
[1770458520443,0.014692,68109.0,68084.0,0.53898601]
[1770458521047,0.014691,68113.0,68086.0,0.53898601]
[1770458521248,0.01469,68117.0,68087.0,0.014696]
[1770458521450,0.014691,68114.0,68088.0,0.53898601]
[1770458522147,0.01469,68118.0,68088.0,0.53898601]
[1770458522549,0.014683,68152.0,68088.0,0.53898601]
[1770458522550,0.56514323,68140.0,68105.0,0.53898601]
[1770458523145,0.014686,68134.0,68110.0,0.53898601]
[1770458523340,0.014682,68157.0,68117.0,0.53898601]
[1770458523341,0.014685,68141.0,68117.0,0.53898601]
[1770458523945,0.42922545,68197.0,68117.0,0.53898601]
[1770458524151,0.42922545,68197.0,68127.0,0.53898601]
[1770458524152,0.014682,68153.0,68127.0,0.53898601]
[1770458524453,0.014683,68151.0,68127.0,0.53898601]
[1770458524853,0.014682,68155.0,68128.0,0.014688]
[1770458525053,0.014682,68155.0,68129.0,0.53898601]
[1770458525649,0.014682,68155.0,68131.0,0.53898601]
[1770458526952,0.014683,68152.0,68131.0,0.53898601]
[1770458527157,0.014683,68149.0,68131.0,0.53898601]
[1770458528354,0.014683,68149.0,68104.0,0.17423667]
[1770458528355,0.57747492,68153.0,68121.0,0.5314285]
[1770458528553,0.57747492,68149.0,68121.0,0.5314285]
[1770458529454,0.57747492,68147.0,68121.0,0.5314285]
[1770458529649,0.014687,68130.0,68109.0,0.55312175]
[1770458529955,0.014684,68147.0,68109.0,0.55312175]
[1770458529956,0.014688,68129.0,68109.0,0.55312175]
[1770458530354,0.014687,68133.0,68109.0,0.55312175]
[1770458530554,0.5745667,68133.0,68109.0,0.55312175]
[1770458531263,0.5598797,68133.0,68109.0,0.55312175]
[1770458531464,0.014692,68110.0,68092.0,0.55312175]
[1770458531759,0.073434,68135.0,68092.0,0.55312175]
[1770458531760,0.014685,68140.0,68108.0,0.55312175]
[1770458531962,0.5598797,68142.0,68110.0,0.55312175]
[1770458532154,0.5598797,68139.0,68110.0,0.55312175]
[1770458532359,0.014687,68133.0,68110.0,0.55312175]
[1770458532865,0.014683,68149.0,68110.0,0.55312175]
[1770458532866,0.5598797,68137.0,68110.0,0.55312175]
[1770458533062,0.5598797,68135.0,68110.0,0.55312175]
[1770458533460,0.014687,68131.0,68110.0,0.55312175]
[1770458533766,0.014686,68134.0,68110.0,0.55312175]
[1770458534260,0.01469,68119.0,68094.0,0.56781675]
[1770458534468,0.5745667,68130.0,68094.0,0.56781675]
[1770458534671,0.01469,68117.0,68094.0,0.56781675]
[1770458534963,0.5598797,68123.0,68094.0,0.55312175]
[1770458535953,0.01469,68117.0,68094.0,0.55312175]
[1770458536267,0.01469,68117.0,68094.0,0.55412175]
[1770458536967,0.014691,68115.0,68094.0,0.55312175]
[1770458537270,0.5598797,68121.0,68094.0,0.55312175]
[1770458537568,0.01469,68120.0,68097.0,0.014694]
[1770458537759,0.01469,68120.0,68098.0,0.55312175]
[1770458539375,0.014689,68123.0,68101.0,0.55312175]
[1770458541468,0.014689,68121.0,68101.0,0.55312175]
[1770458541672,0.073416,68152.0,68101.0,0.55312175]
[1770458541673,0.5598797,68127.0,68101.0,0.55312175]
[1770458541865,0.014692,68110.0,68092.0,0.55312175]
[1770458542559,0.014692,68108.0,68092.0,0.55312175]
[1770458543173,0.014693,68106.0,68092.0,0.55312175]
[1770458543877,0.014692,68109.0,68092.0,0.55312175]
[1770458544678,0.5598797,68118.0,68092.0,0.55312175]
[1770458544679,0.014692,68107.0,68092.0,0.55312175]
[1770458546872,0.014689,68123.0,68101.0,0.55312175]
[1770458547074,0.014689,68124.0,68103.0,0.55312175]
[1770458547275,0.5598797,68129.0,68103.0,0.55312175]
[1770458547572,0.014689,68120.0,68103.0,0.55312175]
[1770458547978,0.014689,68123.0,68103.0,0.55312175]
[1770458548475,0.014688,68128.0,68107.0,0.55312175]
[1770458548675,0.014688,68128.0,68095.0,0.014695]
[1770458548676,0.014687,68132.0,68111.0,0.55312175]
[1770458548875,0.014688,68127.0,68111.0,0.55312175]
[1770458549482,0.014687,68130.0,68111.0,0.55312175]
[1770458549882,0.014688,68128.0,68111.0,0.55312175]
[1770458551484,0.5598797,68137.0,68111.0,0.55312175]
[1770458551682,0.014691,68113.0,68095.0,0.55312175]
[1770458551877,0.014688,68125.0,68099.0,0.55312175]
[1770458551878,0.01469,68116.0,68099.0,0.55312175]
[1770458553483,0.014691,68114.0,68099.0,0.55312175]
[1770458557081,0.014688,68125.0,68099.0,0.55312175]
[1770458557483,0.55045267,68135.0,68106.0,0.014692]
[1770458557789,0.014688,68127.0,68107.0,0.57808077]
[1770458561688,0.55045267,68129.0,68107.0,0.57808077]
[1770458561887,0.01469,68118.0,68107.0,0.57808077]
[1770458562082,0.014685,68141.0,68090.0,0.15100382]
[1770458562083,0.55045267,68126.0,68102.0,0.1215]
[1770458562383,0.014691,68111.0,68102.0,0.1215]
[1770458562590,0.55045267,68119.0,68097.0,0.57808077]
[1770458562591,0.014692,68109.0,68097.0,0.57808077]
[1770458563093,0.014691,68112.0,68097.0,0.57808077]
[1770458564097,0.014692,68110.0,68097.0,0.57808077]
[1770458566895,0.014692,68108.0,68097.0,0.57808077]
[1770458567098,0.014692,68111.0,68097.0,0.57808077]
[1770458567398,0.55045267,68126.0,68097.0,0.57808077]
[1770458568493,0.014689,68123.0,68103.0,0.57808077]
[1770458570690,0.55045267,68134.0,68105.0,0.57808077]
[1770458570992,0.014687,68131.0,68114.0,0.57808077]
[1770458571387,0.014687,68134.0,68114.0,0.57808077]
[1770458571901,0.55045267,68133.0,68107.0,0.57808077]
[1770458572099,0.55045267,68130.0,68107.0,0.57808077]
[1770458573093,0.014689,68121.0,68107.0,0.57808077]
[1770458574102,0.014689,68124.0,68107.0,0.57808077]
[1770458574302,0.014688,68127.0,68107.0,0.57808077]
[1770458575409,0.014685,68140.0,68104.0,0.11615778]
[1770458575705,0.014688,68128.0,68110.0,0.57808077]
[1770458576998,0.014687,68133.0,68112.0,0.57808077]
[1770458578205,0.014687,68133.0,68112.0,0.59277177]
[1770458578399,0.014687,68133.0,68112.0,0.57808077]
[1770458580603,0.014684,68144.0,68124.0,0.57808077]
[1770458580909,0.014684,68145.0,68124.0,0.57808077]
[1770458581209,0.014685,68143.0,68124.0,0.57808077]
[1770458581504,0.014683,68149.0,68126.0,0.57808077]
[1770458581709,0.014683,68150.0,68128.0,0.57808077]
[1770458582110,0.014684,68145.0,68128.0,0.57808077]
[1770458582311,0.014684,68148.0,68128.0,0.57808077]
[1770458582606,0.014683,68150.0,68128.0,0.57808077]
[1770458583813,0.014682,68157.0,68134.0,0.57808077]
[1770458584008,0.55045267,68169.0,68138.0,0.57808077]
[1770458584205,0.55045267,68169.0,68130.0,0.15100382]
[1770458584206,0.01468,68165.0,68144.0,0.57808077]
[1770458584810,0.014679,68168.0,68144.0,0.57808077]
[1770458586398,0.014679,68171.0,68144.0,0.57808077]
[1770458586603,0.014679,68171.0,68146.0,0.014684]
[1770458586798,0.014678,68174.0,68148.0,0.014683]
[1770458587003,0.014678,68174.0,68149.0,0.57321086]
[1770458587200,0.014677,68178.0,68151.0,0.58789386]
[1770458588808,0.55839759,68190.0,68154.0,0.57321086]
[1770458589001,0.014676,68184.0,68158.0,0.57321086]
[1770458590112,0.014676,68184.0,68159.0,0.014681]
[1770458590412,0.014676,68184.0,68160.0,0.53633556]
[1770458590610,0.0002,68213.0,68138.0,0.18892167]
[1770458590611,0.54600394,68204.0,68169.0,0.53633556]
[1770458590917,0.014672,68200.0,68176.0,0.53633556]
[1770458591416,0.014672,68203.0,68176.0,0.55101256]
[1770458593814,0.014671,68206.0,68180.0,0.53633556]
[1770458596708,0.014671,68206.0,68182.0,0.53633556]
[1770458598021,0.54600394,68224.0,68182.0,0.53633556]
[1770458598219,0.0002,68228.0,68191.0,0.53633556]
[1770458598517,0.54620394,68228.0,68191.0,0.53633556]
[1770458598719,0.54600394,68228.0,68191.0,0.53633556]
[1770458599020,0.014668,68220.0,68191.0,0.55100956]
[1770458599225,0.01467,68213.0,68191.0,0.53633556]
[1770458599521,0.014666,68227.0,68201.0,0.014672]
[1770458599822,0.014666,68227.0,68202.0,0.53633556]
[1770458600812,0.014666,68231.0,68204.0,0.53633556]
[1770458601520,0.54600394,68237.0,68204.0,0.53633556]
[1770458601723,0.54600394,68233.0,68204.0,0.53633556]
[1770458601927,0.014667,68226.0,68204.0,0.53633556]
[1770458602114,0.54600394,68230.0,68204.0,0.53633556]
[1770458602115,0.014667,68224.0,68204.0,0.53633556]
[1770458602317,0.014671,68208.0,68190.0,0.53633556]
[1770458602716,0.01467,68211.0,68190.0,0.53633556]
[1770458602912,0.54600394,68228.0,68194.0,0.53633556]
[1770458603233,0.014668,68220.0,68198.0,0.53633556]
[1770458603426,0.014668,68219.0,68198.0,0.53633556]
[1770458603630,0.014669,68217.0,68198.0,0.53633556]
[1770458604230,0.54600394,68228.0,68198.0,0.53633556]
[1770458604422,0.014668,68221.0,68198.0,0.53633556]
[1770458604628,0.014668,68219.0,68198.0,0.53633556]
[1770458604823,0.014668,68222.0,68198.0,0.53633556]
[1770458606320,0.54600394,68235.0,68203.0,0.53633556]
[1770458606521,0.014668,68220.0,68203.0,0.53633556]
[1770458606725,0.014669,68218.0,68203.0,0.53633556]
[1770458606920,0.014669,68215.0,68203.0,0.53633556]
[1770458607316,0.54600394,68222.0,68188.0,0.53633556]
[1770458607515,0.54600394,68222.0,68187.0,0.014675]
[1770458607516,0.54600394,68218.0,68190.0,0.53633556]
[1770458607716,0.01467,68211.0,68190.0,0.53633556]
[1770458607922,0.014668,68222.0,68200.0,0.53633556]
[1770458608123,0.54600394,68230.0,68200.0,0.53633556]
[1770458608323,0.014667,68223.0,68202.0,0.53633556]
[1770458609120,0.54600394,68230.0,68202.0,0.53633556]
[1770458609327,0.56066794,68237.0,68205.0,0.53633556]
[1770458610028,0.014663,68243.0,68209.0,0.53633556]
[1770458610228,0.014666,68231.0,68211.0,0.53633556]
[1770458610432,0.54600394,68244.0,68215.0,0.53633556]
[1770458610628,0.014664,68237.0,68215.0,0.55100456]
[1770458611228,0.014663,68243.0,68218.0,0.55100356]
[1770458611423,0.014663,68241.0,68218.0,0.55100356]
[1770458611622,0.014663,68242.0,68221.0,0.53633556]
[1770458611828,0.54600394,68251.0,68221.0,0.53633556]
[1770458612028,0.014662,68249.0,68226.0,0.53633556]
[1770458612633,0.0002,68255.0,68226.0,0.53633556]
[1770458612834,0.014662,68247.0,68226.0,0.53633556]
[1770458613236,0.014662,68250.0,68228.0,0.53633556]
[1770458613829,0.014661,68253.0,68228.0,0.53633556]
[1770458614738,0.54600394,68260.0,68228.0,0.53633556]
[1770458614929,0.54600394,68256.0,68228.0,0.53633556]
[1770458615235,0.014661,68252.0,68228.0,0.53633556]
[1770458615736,0.014661,68253.0,68231.0,0.53633556]
[1770458615939,0.53114272,68259.0,68233.0,0.5501207]
[1770458616833,0.014661,68253.0,68233.0,0.5501207]
[1770458617434,0.01466,68259.0,68233.0,0.5647857]
[1770458617929,0.014661,68253.0,68233.0,0.5501207]
[1770458618335,0.01466,68256.0,68233.0,0.5501207]
[1770458619140,0.014659,68261.0,68237.0,0.5501207]
[1770458619443,0.014659,68262.0,68239.0,0.5501207]
[1770458619739,0.014659,68260.0,68239.0,0.5501207]
[1770458620135,0.0002,68272.0,68239.0,0.5501207]
[1770458620343,0.014658,68269.0,68248.0,0.5501207]
[1770458621143,0.53114272,68265.0,68241.0,0.5501207]
[1770458621344,0.014659,68264.0,68241.0,0.5501207]
[1770458621638,0.54580172,68262.0,68241.0,0.5501207]
[1770458622042,0.014658,68265.0,68241.0,0.5501207]
[1770458622237,0.53114272,68269.0,68243.0,0.5501207]
[1770458622441,0.53134272,68276.0,68245.0,0.5501207]
[1770458622646,0.014658,68266.0,68245.0,0.5501207]
[1770458622846,0.014658,68267.0,68245.0,0.5501207]
[1770458623242,0.014657,68271.0,68247.0,0.5501207]
[1770458623641,0.0002,68278.0,68253.0,0.5501207]
[1770458623845,0.0002,68278.0,68256.0,0.5501207]
[1770458624145,0.014656,68276.0,68259.0,0.5501207]
[1770458624343,0.014654,68284.0,68259.0,0.5501207]
[1770458624533,0.014655,68282.0,68259.0,0.5501207]
[1770458624740,0.0002,68286.0,68265.0,0.5501207]
[1770458625043,0.50246445,68316.0,68275.0,0.5501207]
[1770458625044,0.0002,68293.0,68275.0,0.5501207]
[1770458625248,0.014648,68314.0,68284.0,0.5501207]
[1770458625555,0.014649,68310.0,68287.0,0.5501207]
[1770458625740,0.53114272,68316.0,68287.0,0.5501207]
[1770458625940,0.014647,68317.0,68287.0,0.5501207]
[1770458626243,0.53114272,68318.0,68287.0,0.5501207]
[1770458626552,0.014649,68309.0,68287.0,0.5501207]
[1770458627136,0.53114272,68315.0,68287.0,0.5501207]
[1770458627344,0.014648,68313.0,68287.0,0.5501207]
[1770458627746,0.01465,68305.0,68287.0,0.5501207]
[1770458628048,0.014653,68289.0,68278.0,0.5501207]
[1770458628251,0.014651,68297.0,68278.0,0.5501207]
[1770458628550,0.53114272,68299.0,68278.0,0.5501207]
[1770458628738,0.014653,68290.0,68278.0,0.5501207]
[1770458629037,0.014653,68290.0,68263.0,0.014659]
[1770458629038,0.014655,68282.0,68257.0,0.5501207]
[1770458629241,0.014655,68279.0,68257.0,0.5501207]
[1770458629447,0.53114272,68289.0,68257.0,0.5501207]
[1770458629642,0.014652,68296.0,68257.0,0.5501207]
[1770458629643,0.53114272,68284.0,68257.0,0.5501207]
[1770458630144,0.53114272,68279.0,68242.0,0.5501207]
[1770458630338,0.53114272,68279.0,68225.0,0.2199464]
[1770458630339,0.53114272,68276.0,68250.0,0.5501207]
[1770458630539,0.014652,68294.0,68250.0,0.5501207]
[1770458630540,0.53114272,68303.0,68266.0,0.5501207]
[1770458630736,0.16517995,68320.0,68279.0,0.5501207]
[1770458630737,0.53114272,68312.0,68279.0,0.5501207]
[1770458631138,0.014651,68301.0,68279.0,0.5501207]
[1770458631541,0.014652,68296.0,68279.0,0.5501207]
[1770458631743,0.014652,68293.0,68268.0,0.5501207]
[1770458631933,0.0002,68302.0,68268.0,0.5501207]
[1770458632139,0.014651,68299.0,68275.0,0.5501207]
[1770458632540,0.53134272,68304.0,68275.0,0.5501207]
[1770458632733,0.014654,68283.0,68260.0,0.5501207]
[1770458633339,0.014655,68281.0,68260.0,0.5501207]
[1770458634049,0.014656,68278.0,68260.0,0.5511207]
[1770458634640,0.53114272,68288.0,68260.0,0.5511207]
[1770458634844,0.0002,68289.0,68260.0,0.5501207]
[1770458635050,0.014853,68289.0,68263.0,0.5501207]
[1770458635551,0.014653,68289.0,68263.0,0.5501207]
[1770458636052,0.014654,68284.0,68263.0,0.5501207]
[1770458636651,0.014653,68288.0,68263.0,0.5501207]
[1770458637450,0.0002,68293.0,68266.0,0.5501207]
[1770458637451,0.014653,68290.0,68266.0,0.5501207]
[1770458637948,0.014654,68287.0,68266.0,0.5501207]
[1770458638145,0.014654,68285.0,68266.0,0.5501207]
[1770458638345,0.53114272,68290.0,68254.0,0.5501207]
[1770458638544,0.014656,68276.0,68254.0,0.5501207]
[1770458639551,0.014656,68274.0,68254.0,0.5501207]
[1770458640249,0.014656,68277.0,68254.0,0.5501207]
[1770458640644,0.53134272,68286.0,68254.0,0.5501207]
[1770458640845,0.014652,68293.0,68258.0,0.5501207]
[1770458640846,0.014655,68281.0,68258.0,0.5501207]
[1770458641046,0.0002,68284.0,68258.0,0.5501207]
[1770458641245,0.0002,68284.0,68266.0,0.5501207]
[1770458641652,0.014656,68278.0,68255.0,0.5501207]
[1770458642044,0.014656,68276.0,68255.0,0.5501207]
[1770458642244,0.014655,68279.0,68255.0,0.5501207]
[1770458642544,0.014656,68275.0,68255.0,0.5501207]
[1770458642946,0.014656,68278.0,68255.0,0.5501207]
[1770458643154,0.014656,68276.0,68255.0,0.5501207]
[1770458643649,0.53114272,68284.0,68255.0,0.5501207]
[1770458643650,0.0002,68291.0,68255.0,0.5501207]
[1770458643853,0.014654,68287.0,68262.0,0.5501207]
[1770458644055,0.014654,68287.0,68264.0,0.5501207]
[1770458644756,0.014654,68284.0,68264.0,0.5501207]
[1770458645060,0.0002,68303.0,68281.0,0.5501207]
[1770458645249,0.0002,68303.0,68264.0,0.18846798]
[1770458645250,0.0002,68311.0,68291.0,0.5501207]
[1770458645455,0.014848,68311.0,68291.0,0.5501207]
[1770458646256,0.0002,68311.0,68291.0,0.5501207]
[1770458646454,0.0002,68318.0,68291.0,0.5501207]
[1770458646762,0.014648,68312.0,68291.0,0.5501207]
[1770458647261,0.0002,68318.0,68294.0,0.54402795]
[1770458647459,0.0002,68323.0,68294.0,0.54402795]
[1770458648360,0.55061574,68304.0,68281.0,0.54402795]
[1770458648549,0.55061574,68319.0,68291.0,0.54402795]
[1770458649060,0.014651,68301.0,68280.0,0.54402795]
[1770458649356,0.014651,68301.0,68279.0,0.014655]
[1770458649357,0.01465,68305.0,68282.0,0.54402795]
[1770458649765,0.01465,68303.0,68282.0,0.54402795]
[1770458649959,0.014651,68301.0,68282.0,0.54402795]
[1770458651959,0.57970143,68308.0,68274.0,0.11586122]
[1770458652271,0.014653,68291.0,68273.0,0.55553649]
[1770458652458,0.57970143,68301.0,68273.0,0.55553649]
[1770458652459,0.014652,68294.0,68273.0,0.55553649]
[1770458652654,0.014653,68292.0,68273.0,0.55553649]
[1770458652854,0.57970143,68300.0,68273.0,0.55553649]
[1770458653157,0.014648,68313.0,68273.0,0.55553649]
[1770458653158,0.014654,68287.0,68273.0,0.55553649]
[1770458654663,0.014654,68285.0,68264.0,0.67139771]
[1770458654862,0.014654,68285.0,68264.0,0.55553649]
[1770458655754,0.014654,68283.0,68264.0,0.55553649]
[1770458655957,0.014654,68286.0,68264.0,0.55553649]
[1770458656554,0.0002,68300.0,68277.0,0.55553649]
[1770458656755,0.014851,68300.0,68280.0,0.55553649]
[1770458657683,0.42922545,68330.0,68280.0,0.55553649]
[1770458657684,0.57970143,68355.0,68316.0,0.55553649]
[1770458657959,0.57970143,68346.0,68316.0,0.55553649]
[1770458658165,0.59434243,68345.0,68316.0,0.55553649]
[1770458658366,0.59434343,68342.0,68316.0,0.55553649]
[1770458659068,0.57970143,68342.0,68316.0,0.55553649]
[1770458659266,0.57970143,68342.0,68320.0,0.15053295]
[1770458659470,0.014642,68340.0,68320.0,0.15053295]
[1770458659667,0.014642,68340.0,68298.0,0.17502956]
[1770458659668,0.014643,68337.0,68312.0,0.014648]
[1770458660171,0.014642,68339.0,68312.0,0.014648]
[1770458660358,0.57970143,68340.0,68314.0,0.014648]
[1770458660565,0.57970143,68338.0,68307.0,0.014649]
[1770458660764,0.57970143,68338.0,68306.0,0.55553649]
[1770458660765,0.57970143,68338.0,68310.0,0.014649]
[1770458661468,0.0002,68331.0,68310.0,0.72023639]
[1770458661664,0.0002,68331.0,68311.0,0.55553649]
[1770458661858,0.0002,68331.0,68312.0,0.014648]
[1770458662058,0.0002,68331.0,68315.0,0.014647]
[1770458662260,0.59434243,68347.0,68320.0,0.1500509]
[1770458662462,0.59434243,68347.0,68315.0,0.55553649]
[1770458662463,0.014643,68338.0,68315.0,0.55553649]
[1770458662668,0.59434443,68338.0,68313.0,0.014648]
[1770458662866,0.59434443,68338.0,68313.0,0.57018449]
[1770458662867,0.57970143,68338.0,68313.0,0.57018449]
[1770458663077,0.57970143,68338.0,68300.0,0.1500509]
[1770458663078,0.57970143,68338.0,68303.0,0.55553649]
[1770458663277,0.57970143,68334.0,68303.0,0.55553649]
[1770458663485,0.57970143,68330.0,68303.0,0.55553649]
[1770458663869,0.014645,68326.0,68303.0,0.55553649]
[1770458664069,0.59434643,68330.0,68304.0,0.01465]
[1770458664275,0.014659,68326.0,68314.0,0.57018449]
[1770458664471,0.0002,68335.0,68317.0,0.014647]
[1770458664668,0.57970143,68349.0,68320.0,0.1500509]
[1770458664875,0.014642,68340.0,68320.0,0.1500509]
[1770458665282,0.014642,68340.0,68320.0,0.70558739]
[1770458665584,0.014642,68340.0,68321.0,0.55553649]
[1770458665774,0.014644,68332.0,68310.0,0.57018549]
[1770458666575,0.014642,68342.0,68312.0,0.55553649]
[1770458666781,0.57990143,68346.0,68321.0,0.55553649]
[1770458667177,0.014642,68341.0,68321.0,0.55553649]
[1770458667380,0.57970143,68337.0,68312.0,0.57018449]
[1770458668479,0.59434443,68337.0,68315.0,0.014647]
[1770458668676,0.0002,68341.0,68300.0,0.1500509]
[1770458668677,0.014642,68340.0,68317.0,0.57018349]
[1770458669279,0.57990143,68341.0,68317.0,0.55553649]
[1770458669579,0.014643,68337.0,68312.0,0.014648]
[1770458670582,0.014643,68337.0,68312.0,0.57018449]
[1770458670781,0.57970143,68335.0,68301.0,0.55553649]
[1770458670983,0.57970143,68331.0,68302.0,0.01465]
[1770458671576,0.57970143,68331.0,68301.0,0.55553649]